[Event "Polish Youth B18 Championship 2023"]
[Site "Jastrzebia Gora"]
[Date "2023.03.15"]
[Round "5.11"]
[White "Madajczak, Piotr"]
[Black "Dziendziel, Mateusz"]
[Result "1-0"]
[ECO "A06"]
[WhiteElo "1897"]
[BlackElo "2084"]
[Annotator "TA"]
[PlyCount "64"]
[EventDate "2023.03.11"]
[EventType "swiss"]
[EventCountry "POL"]
[SourceTitle "playchess.com"]
[Source "ChessBase"]
[SourceQuality "1"]
[TimeControl "40/5400+30:1800+30"]

{[%evp 11,63,12,20,0,0,-29,-25,-20,-36,-30,-19,-34,-28,-79,-45,-74,-48,-55,-37,-54,-9,-69,-72,-65,-72,-118,0,0,-1,-8,29,8,67,78,144,130,186,171,203,192,197,191,192,157,292,283,325,338,334,336,29980,29981,29991,29992]} 1. Nf3 {[%emt 0:00:04]} d5 {[%emt 0:00:13]} 2. b3 {[%emt 0:00:12]} c5 {[%emt 0:01:32]} 3. e3 {[%emt 0:00:12]} Nc6 {[%emt 0:00:40]} 4. Bb5 {[%emt 0:01:12]} Bg4 {[%emt 0:04:07]} 5. Bb2 {[%emt 0:03:01]} Nf6 {[%emt 0:03:51]} 6. h3 {[%emt 0:01:31]} Bh5 {[%emt 0:00:55] 6...Bxf3 is more advanced technology.} 7. O-O {[%emt 0:01:17] A06: Réti Opening: 1 Nf3 d5.} e6 {[%emt 0:01:43]} 8. d4 {[%emt 0:10:03]} cxd4 {[%emt 0:12:07]} 9. exd4 {[%emt 0:01:28] Black has an edge.} Bd6 {[%emt 0:01:31]} 10. Be2 {[%emt 0:03:08]} O-O {[%emt 0:02:55]} 11. Nbd2 {[%emt 0:07:18]} Qc7 {[%emt 0:13:07] [#]} 12. Rc1 $146 {[%emt 0:05:32]} (12. Nh4 $11 {keeps the balance.}) ({Predecessor:} 12. a3 a6 13. Re1 Rac8 14. Rc1 b5 15. Kh1 Bf4 16. c3 Rfe8 17. b4 Qa7 18. Ra1 {0-1 Reyes Cortes,R (1652)-Lucena Cifre,R (1730) ESP AEAC W/A/144 email 2016}) 12... Bf4 {[%emt 0:01:39]} 13. c3 {[%emt 0:11:40]} Rac8 {[%emt 0:09:04]} 14. Ra1 {[%emt 0:18:07]} Rfe8 {[%emt 0:18:00]} 15. Re1 {[%emt 0:03:02]} Qa5 {[%emt 0:11:10]} 16. b4 {[%emt 0:05:49]} (16. g3 $11 Bd6 17. Ne5) 16... Qc7 $15 {[%emt 0:01:19]} 17. a4 {[%emt 0:05:17]} a5 {[%emt 0:01:27]} 18. Qb3 {[%emt 0:08:29]} (18. b5 $142 Ne7 19. Qc2) 18... g5 {[%emt 0:04:19]} (18... Bxd2 $17 19. Nxd2 Bxe2 20. Rxe2 axb4 21. cxb4 Qb6) 19. b5 $11 {[%emt 0:06:31]} Ne7 {[%emt 0:00:33]} 20. b6 {[%emt 0:01:21]} Qb8 {[%emt 0:00:12]} (20... Qd8 $5 {[%cal Rf4d2]}) 21. c4 {[%emt 0:00:32]} dxc4 {[%emt 0:04:23]} ({Black should try} 21... Bxd2 $11 22. Nxd2 Qf4) 22. Nxc4 $14 {[%emt 0:00:13]} Ned5 {[%emt 0:00:48] [#]} (22... Nfd5 $142) 23. Nfe5 $1 $16 {[%emt 0:00:31]} Bxe2 {[%emt 0:01:00]} (23... Bg6 $16) 24. Rxe2 $18 {[%emt 0:00:01]} Red8 {[%emt 0:01:44] [#]} 25. g3 $1 {[%emt 0:00:47]} Bxe5 {[%emt 0:00:01]} 26. dxe5 {[%emt 0:00:09]} Ne8 {[%emt 0:00:35]} 27. Re4 {[%emt 0:01:27]} h5 {[%emt 0:02:40]} (27... Rc6 $16 28. h4 (28. Nxa5 Rxb6 29. Qc2 Ng7 $11) 28... Ng7) 28. Qf3 {[%emt 0:01:21]} (28. Nxa5 $6 Rc5 $18) 28... Ng7 {[%emt 0:01:00]} 29. Nd6 {[%emt 0:00:15]} ({Resist} 29. Nxa5 Rd7 30. Nc4 Rc6) 29... Rxd6 {[%emt 0:01:05]} 30. exd6 {[%emt 0:00:02]} f5 $2 {[%emt 0:01:16] [#]} (30... Qxd6 $18 31. Bxg7 {[%mdl 64] Remove Defender} Kxg7 32. Qxh5 Qe7) 31. Rxe6 $3 {[%emt 0:01:08][%mdl 576] Discovered Attack, Remove Defender} Nxe6 {[%emt 0:00:29]} (31... Nc3 32. Re7) 32. Qxd5 {[%emt 0:00:01]} Re8 {[%emt 0:01:05] Weighted Error Value: White=0.12 (very precise) /Black=0.42} 1-0

[Event "Polish Youth B18 Championship 2023"]
[Site "Jastrzebia Gora"]
[Date "2023.03.15"]
[Round "5.12"]
[White "Smetek, Michal"]
[Black "Wilk, Igor"]
[Result "1/2-1/2"]
[ECO "E06"]
[WhiteElo "1787"]
[BlackElo "2058"]
[Annotator "TA"]
[PlyCount "118"]
[EventDate "2023.03.11"]
[EventType "swiss"]
[EventCountry "POL"]
[SourceTitle "playchess.com"]
[Source "ChessBase"]
[SourceQuality "1"]
[TimeControl "40/5400+30:1800+30"]

{[%evp 21,118,31,37,35,61,63,101,79,75,90,158,120,138,-2,22,24,33,4,37,34,38,32,24,23,160,133,157,78,56,30,94,94,90,111,101,95,147,41,34,29,83,47,57,17,17,14,13,17,15,16,25,21,103,101,269,23,53,25,40,25,24,21,23,29,35,27,31,22,34,16,18,11,19,16,54,35,41,41,36,0,144,47,37,32,43,42,70,8,8,0,0,0,4,0,0,0,2,0,0]} 1. d4 {[%emt 0:00:03]} Nf6 {[%emt 0:00:09]} 2. c4 {[%emt 0:00:04]} e6 {[%emt 0:00:06]} 3. g3 {[%emt 0:00:07]} d5 {[%emt 0:00:11]} 4. Nf3 {[%emt 0:00:13]} Be7 {[%emt 0:00:14]} 5. Bg2 {[%emt 0:00:05]} O-O {[%emt 0:00:07]} 6. O-O {[%emt 0:00:06]} dxc4 {[%emt 0:00:05]} 7. Qa4 {[%emt 0:00:47]} a6 {[%emt 0:00:50]} 8. Qxc4 {[%emt 0:00:19]} b5 {[%emt 0:00:16]} 9. Qc2 {[%emt 0:00:17]} Bb7 {[%emt 0:00:33]} 10. Bd2 {[%emt 0:00:29]} Nbd7 {[%emt 0:06:26]} 11. Ba5 {[%emt 0:02:15]} Rc8 {[%emt 0:00:23]} 12. Nbd2 {[%emt 0:06:12] E05: Open Catalan: 5 Nf3 Be7.} Qe8 {[%emt 0:02:51]} 13. b4 $1 {[%emt 0:10:02]} Bd6 {[%emt 0:06:09]} 14. e4 {[%emt 0:14:23] e5 is the strong threat. White is better.} e5 {[%emt 0:01:24]} 15. Rfe1 {[%emt 0:01:15] [#]} Nb8 $146 {[%emt 0:06:35]} ({Better is} 15... Nb6) ({Predecessor:} 15... Qe7 16. a3 Rfe8 17. Rad1 Qf8 18. dxe5 Nxe5 19. Nxe5 Bxe5 {1-0 Anwesh,U (2369)-Grygoriev,O (2121) Cherkasy Konsalt IM 2021 (1)}) 16. Bh3 {[%emt 0:06:53]} Nfd7 {[%emt 0:03:22]} 17. d5 {[%emt 0:04:47] Prevents Nc6.} ({White should try} 17. dxe5 $16 Nxe5 18. Bxc8 Qxc8 19. Nxe5 Bxe5 20. Rac1) 17... Qe7 {[%emt 0:06:05]} (17... c6 $5 {[%cal Rc6d5]}) 18. a4 {[%emt 0:04:50]} c6 {[%emt 0:04:34]} 19. Qb3 {[%emt 0:03:51]} Rce8 {[%emt 0:02:18]} (19... bxa4 {keeps more tension.} 20. Rxa4 cxd5 21. exd5 Nf6) 20. axb5 {[%emt 0:02:20]} axb5 {[%emt 0:00:53]} 21. Rad1 {[%emt 0:02:39]} Nf6 {[%emt 0:01:50][%cal Rc6d5]} 22. Nf1 {[%emt 0:01:48]} Na6 {[%emt 0:02:56]} (22... Bc8 $11 {keeps the balance.} 23. Bxc8 Rxc8) 23. Ne3 $16 {[%emt 0:01:34]} g6 {[%emt 0:00:54][%cal Rd6b4] Prevents Nf5.} (23... Nxb4 $2 24. Nf5 c5 25. Nxe7+ $18) (23... Bxb4 $2 24. d6 Bxd6 25. Nf5 $18) (23... Nxe4 $2 24. Nf5 Qf6 25. Rxe4) 24. dxc6 {[%emt 0:04:11]} (24. Nh4 $142 $1 {[%cal Rh4f5]} Bc8 25. Bxc8 Rxc8 26. Nef5 (26. dxc6 Bxb4 27. Nhf5 gxf5 $18)) 24... Bxc6 {[%emt 0:00:33]} 25. Nd5 {[%emt 0:00:56]} Bxd5 {[%emt 0:02:16]} (25... Nxd5 $1 $11 26. exd5 Bb7) 26. exd5 {[%emt 0:00:08]} Bxb4 {[%emt 0:02:06]} 27. d6 $1 {[%emt 0:03:44]} (27. Rxe5 Qd6 28. Bxb4 Nxb4 $11) 27... Bxd6 {[%emt 0:00:22]} 28. Qxb5 {[%emt 0:00:14]} Nb8 {[%emt 0:09:54] [#]} (28... Bc5 $142) 29. Bc3 {[%emt 0:05:04] White has more active pieces. The black rooks are badly placed.} (29. Nxe5 $1 $16 Bxe5 30. Bb4) 29... Qc7 $1 $14 {[%emt 0:05:44]} ({But not} 29... Nbd7 30. Qa6 Bc7 31. Qb7 $16) 30. Ba1 {[%emt 0:05:17][%cal Od1c1]} Re7 {[%emt 0:05:34]} (30... Nbd7 $11) 31. Nxe5 {[%emt 0:06:28] Threatens to win with Rc1.} Rfe8 {[%emt 0:00:21][%cal Rd6e5]} 32. Nf3 {[%emt 0:00:19][%cal Be5f3,Bf3e1,Be1d3][%mdl 32]} Rxe1+ {[%emt 0:00:40]} 33. Rxe1 {[%emt 0:00:28]} Rxe1+ {[%emt 0:00:13]} 34. Nxe1 {[%emt 0:00:04]} Nbd7 {[%emt 0:00:26]} 35. Nd3 {[%emt 0:03:51]} Kf8 {[%emt 0:02:03]} 36. Bd4 {[%emt 0:03:42]} Ke7 {[%emt 0:01:52]} (36... Kg8 $11 {remains equal.}) 37. Qg5 $16 {[%emt 0:02:20]} Qc4 $2 {[%emt 0:01:45] [#]} (37... Qc2 $16 {was necessary.} 38. Bxd7 Kxd7) 38. Qe3+ $2 {[%emt 0:02:04]} (38. Ne5 $1 $18 {[%cal Re5c4]} Qd5 39. Bg2 (39. Bxd7 h6 $18)) 38... Kd8 {[%emt 0:01:22]} (38... Kf8 {is interesting.} 39. Bf1 Qd5 40. Bg2 Qb3) 39. Bf1 {[%emt 0:02:02] And now Ne5 would win.} (39. Bb2 {with more complications.} Qb3 40. Qe2 Qd5 41. Bg2) 39... Qe6 {[%emt 0:01:21] Prevents Ne5.} 40. Qf3 {[%emt 0:00:00][%cal Of1h3]} (40. Qc1 {seems wilder.} Qd5 41. Be3 Ng4 42. Bg5+) 40... Ke7 {[%emt 0:00:00]} 41. Qb7 {[%emt 0:06:13] Hoping for Nc5.} Kf8 {[%emt 0:03:49]} 42. Qc8+ {[%emt 0:01:12]} Qe8 {[%emt 0:03:01]} 43. Qc6 {[%emt 0:00:30]} Qb8 {[%emt 0:02:24]} 44. Qf3 {[%emt 0:02:11]} (44. Kg2 {simplifies} Kg8 45. f4 Qc7 46. Qxc7 Bxc7 47. Kf3) 44... Ke7 {[%emt 0:00:41]} 45. h4 {[%emt 0:06:14]} Qb3 {[%emt 0:01:22]} 46. Bh3 {[%emt 0:03:14]} Qd5 {[%emt 0:01:22]} (46... Qb1+ {feels hotter.} 47. Kg2 Qb3 48. h5 Qd5) 47. Qe3+ {[%emt 0:01:20]} Kd8 {[%emt 0:00:20]} (47... Kf8 {keeps more tension.} 48. Bg2 Qc4 49. Ba1 h5) 48. Bg2 {[%emt 0:03:34]} Qe6 {[%emt 0:00:28]} 49. Qg5 {[%emt 0:01:16]} Ke8 {[%emt 0:02:31]} 50. Bc6 {[%emt 0:02:40] A strong pair of Bishops.} Be7 {[%emt 0:00:39]} (50... Qc4 $1 $11 51. Bxf6 Qxc6 52. Qe3+ Kf8) 51. Qb5 {[%emt 0:01:15]} (51. Ne5 $16 {Qc1 would be deadly.} Bd6 52. Nf3) 51... Kf8 $1 $14 {[%emt 0:00:44]} 52. Qa4 {[%emt 0:01:46]} Bd6 {[%emt 0:02:31]} 53. Qa8+ {[%emt 0:01:23]} Kg7 {[%emt 0:01:47]} 54. Bxd7 {[%emt 0:06:02]} (54. Qd8 $14 Nf8 55. Bd5) 54... Qxd7 $11 {[%emt 0:00:10] The position is equal.} 55. Qf3 {[%emt 0:00:15]} Be7 {[%emt 0:00:43]} 56. Qf4 {[%emt 0:02:03]} Qe6 {[%emt 0:02:00]} 57. Ne5 {[%emt 0:00:29]} Kg8 {[%emt 0:00:34]} 58. Nf3 {[%emt 0:00:31]} Qe4 {[%emt 0:00:48]} 59. Qxe4 {[%emt 0:01:00]} ({Of course not} 59. Bxf6 Qxf4 60. gxf4 Bxf6 $17) 59... Nxe4 {[%emt 0:00:04] Weighted Error Value: White=0.27 (precise) /Black=0.23 (precise)} 1/2-1/2

[Event "Polish Youth B18 Championship 2023"]
[Site "Jastrzebia Gora"]
[Date "2023.03.15"]
[Round "5.13"]
[White "Ciszewski, Krzysztof"]
[Black "Lis, Maksymilian"]
[Result "1-0"]
[ECO "D20"]
[WhiteElo "2047"]
[BlackElo "1784"]
[Annotator "TA"]
[PlyCount "75"]
[EventDate "2023.03.11"]
[EventType "swiss"]
[EventCountry "POL"]
[SourceTitle "playchess.com"]
[Source "ChessBase"]
[SourceQuality "1"]
[TimeControl "40/5400+30:1800+30"]

{[%evp 12,75,33,31,37,21,30,16,15,7,7,0,0,-6,6,0,33,15,38,0,-6,-4,0,0,0,-16,0,-17,4,6,8,31,32,18,196,181,200,196,204,199,195,180,205,159,140,129,209,163,163,116,127,78,81,51,376,386,491,480,580,579,602,602,592,591,564,498]} 1. d4 {[%emt 0:01:10]} d5 {[%emt 0:00:12]} 2. c4 {[%emt 0:00:05]} dxc4 {[%emt 0:00:05]} 3. e3 {[%emt 0:00:05]} Nf6 {[%emt 0:00:05]} 4. Bxc4 {[%emt 0:00:06]} e6 {[%emt 0:00:04]} 5. Nf3 {[%emt 0:00:16]} a6 {[%emt 0:00:08]} 6. O-O {[%emt 0:00:20]} c5 {[%emt 0:00:11]} 7. b3 $1 {[%emt 0:01:07][%mdl 4] is recently more successful than 7.dxc5.} Be7 {[%emt 0:04:07] D27: Queen's Gambit Accepted: Classical main line: 7 e4!? and 7 a4.} 8. Bb2 {[%emt 0:00:17]} O-O {[%emt 0:00:18]} 9. Nbd2 {[%emt 0:00:35]} Nbd7 {[%emt 0:00:45] The position is equal.} 10. a4 {[%emt 0:02:10]} b6 {[%emt 0:00:46] [#]} 11. Be2 $146 {[%emt 0:02:40]} ({Predecessor:} 11. Qe2 h6 12. Rfd1 Bb7 13. Nf1 cxd4 14. Nxd4 Qe8 15. Rab1 Nc5 16. f3 Nd5 17. e4 {½-½ Oreopoulos,K (2490)-Kluegel,J (2517) ICCF GMN/A/01 email 2019}) 11... Bb7 {[%emt 0:00:37]} 12. Nc4 {[%emt 0:04:56]} Rc8 {[%emt 0:04:17]} 13. Rc1 {[%emt 0:00:43]} Qc7 {[%emt 0:02:42]} 14. dxc5 {[%emt 0:19:57]} Bxc5 {[%emt 0:04:39]} 15. Nd4 {[%emt 0:02:31]} Rfd8 {[%emt 0:05:29]} 16. Bf3 {[%emt 0:02:49]} Qb8 {[%emt 0:04:37]} (16... Bxd4 {seems wilder.} 17. exd4 b5 18. axb5 axb5 19. Nd6 Qxd6 20. Bxb7 Rxc1 21. Qxc1 Nd5) 17. Bxb7 {[%emt 0:01:51]} Qxb7 {[%emt 0:00:05]} 18. Qe2 {[%emt 0:00:58]} Nd5 {[%emt 0:06:43]} 19. Rfd1 {[%emt 0:01:46]} Be7 {[%emt 0:07:04]} (19... Bf8 $5) 20. Qf3 {[%emt 0:12:27]} Nc5 {[%emt 0:02:48]} 21. a5 {[%emt 0:14:54]} b5 $1 {[%emt 0:01:11]} 22. Ne5 {[%emt 0:00:43]} Bd6 $2 {[%emt 0:21:09] [#]} (22... Rf8 $11) 23. Nec6 $1 $18 {[%emt 0:03:04][%mdl 512]} Rd7 {[%emt 0:03:43][%cal Oc5b3]} (23... Rxc6 24. Nxc6) 24. e4 $1 {[%emt 0:02:33][%cal Be3e4,Be4e5][%mdl 32]} Ne7 {[%emt 0:01:36]} 25. e5 $1 {[%emt 0:02:32]} Nxc6 {[%emt 0:00:05]} 26. exd6 {[%emt 0:00:30]} Nxa5 {[%emt 0:06:56]} 27. Qxb7 {[%emt 0:01:50]} Naxb7 {[%emt 0:00:04]} 28. b4 {[%emt 0:00:26] White is more active.} Nxd6 {[%emt 0:01:03]} 29. bxc5 $40 {[%emt 0:04:20][%mdl 128] White attacks with force.} Nc4 {[%emt 0:00:20]} 30. c6 {[%emt 0:02:01]} (30. Bc3 $1 $18) 30... Rdc7 {[%emt 0:00:07] [#]} 31. Bc3 {[%emt 0:01:49]} (31. Ba1 $142 $1) 31... e5 $16 {[%emt 0:00:16]} 32. Nf5 {[%emt 0:01:15] Bb4 would be deadly.} f6 $2 {[%emt 0:05:34][%mdl 8192]} (32... g6 $1 $14 33. Nh6+ Kf8) 33. Bb4 $18 {[%emt 0:02:32]} ({Weaker is} 33. Rd7 Rxd7 34. cxd7 Rd8 $14) 33... Kf7 {[%emt 0:00:10]} 34. Nd6+ {[%emt 0:03:28] White is clearly winning.} Nxd6 {[%emt 0:00:09]} 35. Rxd6 {[%emt 0:00:08]} Ke7 {[%emt 0:00:51]} 36. Rd7+ {[%emt 0:02:02]} Ke8 {[%emt 0:00:04] [#]} 37. Rxc7 {[%emt 0:01:03]} Rxc7 {[%emt 0:00:04]} 38. Ba5 {[%emt 0:00:09] Weighted Error Value: White=0.11 (very precise) /Black=0.44} 1-0

[Event "Polish Youth B18 Championship 2023"]
[Site "Jastrzebia Gora"]
[Date "2023.03.15"]
[Round "5.14"]
[White "Pieczulis, Blazej"]
[Black "Stachecki, Mikolaj"]
[Result "0-1"]
[ECO "E61"]
[WhiteElo "1784"]
[BlackElo "2015"]
[Annotator "TA"]
[PlyCount "140"]
[EventDate "2023.03.11"]
[EventType "swiss"]
[EventCountry "POL"]
[SourceTitle "playchess.com"]
[Source "ChessBase"]
[SourceQuality "1"]
[TimeControl "40/5400+30:1800+30"]

{[%evp 16,140,11,16,12,13,17,19,38,0,0,-13,61,8,10,-5,0,-44,0,0,14,-3,-3,-3,50,42,47,0,0,0,0,-17,-12,-15,0,0,103,93,98,4,2,4,5,16,11,0,10,0,0,-72,0,0,0,-189,-179,-239,-230,-273,-266,-366,-355,-503,-385,-493,-297,-306,-283,-305,-306,-306,-303,-293,-279,-269,-200,-531,-395,-444,-464,-431,-433,-454,-393,-712,-707,-702,-653,-664,-650,-897,-882,-1081,-1029,-918,-883,-29983,-29982,-29980,-29977,-29974,-29975,-29978,-29977,-29983,-29982,-29984,-29983,-29983,-29984,-29985,-29985,-29984,-29984,-29985,-29986,-29986,-29987,-29987,-29988,-29988,-29989,-29989,-29989,-29991,-29991,-29991,-29991]} 1. d4 {[%emt 0:00:09]} Nf6 {[%emt 0:00:21]} 2. c4 {[%emt 0:00:27]} g6 {[%emt 0:00:09]} 3. Nc3 {[%emt 0:00:29]} Bg7 {[%emt 0:00:10]} 4. Bg5 {[%emt 0:00:34]} d6 {[%emt 0:01:50]} 5. Nf3 {[%emt 0:02:52]} O-O {[%emt 0:00:16]} 6. e3 {[%emt 0:00:31]} c5 {[%emt 0:00:39]} 7. d5 {[%emt 0:00:11]} h6 {[%emt 0:00:12]} 8. Bh4 {[%emt 0:00:10]} g5 {[%emt 0:00:16]} 9. Bg3 {[%emt 0:00:27]} Nh5 {[%emt 0:00:09] E61: King's Indian: Early deviations for White, including Smyslov System.} 10. Nd2 {[%emt 0:02:21]} Nxg3 {[%emt 0:00:09]} 11. hxg3 {[%emt 0:00:02]} f5 {[%emt 0:01:13] The position is equal. is the legacy move (11...e6).} 12. f4 {[%emt 0:06:24]} e5 $1 {[%emt 0:07:36]} 13. dxe6 {[%emt 0:18:29] [#]} (13. Qh5 $5 {[%cal Rf4g5]}) 13... Re8 $146 {[%emt 0:06:20]} (13... Nc6 $11) ({Predecessor:} 13... Bxe6 14. Qc2 Nc6 15. a3 a6 16. O-O-O b5 17. cxb5 axb5 18. Bxb5 Nb4 19. axb4 cxb4 20. Na4 Qa5 {1-0 Pastar,S (2323)-Farkas,S (2041) Battle of Senta op 24th 2020 (1)}) 14. Kf2 {[%emt 0:01:17]} ({White should try} 14. Qh5 $14) 14... Bxe6 $11 {[%emt 0:04:12]} 15. Bd3 {[%emt 0:09:09]} Nc6 {[%emt 0:07:04]} 16. Nd5 {[%emt 0:15:01]} Ne7 {[%emt 0:15:12]} 17. Qc2 {[%emt 0:18:08]} Rf8 {[%emt 0:09:52]} ({Don't play} 17... Bxd5 18. cxd5 gxf4 19. gxf4 $14) 18. Rae1 {[%emt 0:03:37]} Nxd5 {[%emt 0:10:39]} 19. cxd5 {[%emt 0:00:05]} Bxd5 {[%emt 0:03:53]} (19... Bd7 $11) 20. Bxf5 $14 {[%emt 0:01:22]} Qf6 {[%emt 0:00:14]} 21. Be4 {[%emt 0:01:50]} (21. Bd3 $14 {should be considered.}) 21... Bxe4 $11 {[%emt 0:01:16]} 22. Qxe4 {[%emt 0:00:14]} Qf7 {[%emt 0:06:19]} 23. b3 {[%emt 0:03:26]} (23. Nf3 $5 {[%cal Rf3g5]} Rae8 24. Qc2 $11) 23... d5 {[%emt 0:01:06]} 24. Qc2 {[%emt 0:02:28][%cal Od2f3]} b6 {[%emt 0:05:23]} 25. Nf3 {[%emt 0:00:45][%cal Of3g5]} Qf5 {[%emt 0:01:27]} (25... gxf4 $11 26. gxf4 Rfe8) 26. Qxf5 $16 {[%emt 0:01:06]} Rxf5 {[%emt 0:00:05]} 27. g4 {[%emt 0:00:05]} ({White should play} 27. fxg5 $16 hxg5 28. Rh5) 27... Rf7 $11 {[%emt 0:00:22]} 28. fxg5 {[%emt 0:05:16]} hxg5 {[%emt 0:00:04]} 29. Rh5 {[%emt 0:00:07]} Bf6 {[%emt 0:00:39]} 30. Ke2 {[%emt 0:00:27]} Rg7 {[%emt 0:00:28]} 31. Rf1 {[%emt 0:01:34]} Re8 {[%emt 0:03:56]} 32. Kd2 {[%emt 0:01:02]} (32. Rh6 $11 {keeps the balance.} Re6 33. Kd1) 32... Re4 {[%emt 0:01:13]} (32... Rg6 $17) 33. Rh6 {[%emt 0:00:50]} Re6 {[%emt 0:06:31][%cal Of6c3] ...Bc3+! would be deadly.} 34. Kd3 {[%emt 0:01:08] Repels Bc3. Black converts the advantage convincingly.} (34. Kc2 $11 {and White is okay.}) 34... Rge7 $36 {[%emt 0:03:30][%mdl 2048] Keeping White busy.} 35. Re1 {[%emt 0:01:54]} (35. Nd2 $142 Rxe3+ 36. Kc2) 35... Kg7 {[%emt 0:00:05]} 36. Rh5 {[%emt 0:00:11] [#]} Kg6 {[%emt 0:00:09]} 37. Nd2 {[%emt 0:00:16]} b5 {[%emt 0:00:50] ...Ra6 is the strong threat.} 38. Rh3 {[%emt 0:00:27]} (38. Reh1 $142 Rxe3+ 39. Kc2) 38... c4+ {[%emt 0:01:12]} 39. bxc4 {[%emt 0:01:42]} dxc4+ {[%emt 0:03:02]} 40. Kc2 {[%emt 0:00:00]} Ra6 {[%emt 0:00:00]} 41. Kb1 {[%emt 0:03:51]} c3 {[%emt 0:03:08]} 42. Nb3 {[%emt 0:00:40] [#]} c2+ $1 {[%emt 0:00:46][%mdl 576] Decoy} 43. Kxc2 {[%emt 0:01:42]} Rxa2+ {[%emt 0:00:05]} 44. Kd3 {[%emt 0:00:06]} Rxg2 {[%emt 0:04:55]} 45. Nc5 {[%emt 0:01:46]} (45. Reh1 {is a better chance.}) 45... Rxg4 {[%emt 0:01:25] Strongly threatening ...Rc4.} 46. Reh1 {[%emt 0:00:33]} Bg7 {[%emt 0:02:15] Dodges Rh6+. And now ...Rc4 would win.} 47. Rb1 {[%emt 0:00:52]} b4 {[%emt 0:00:57]} 48. Rh2 {[%emt 0:00:32]} Rc7 {[%emt 0:04:42]} 49. Nb3 (49. Rc1) 49... Rc3+ {[%emt 0:00:32]} 50. Kd2 {[%emt 0:01:06]} Re4 {[%emt 0:01:17]} 51. Re2 {[%emt 0:00:15]} g4 {[%emt 0:00:36]} 52. Nc1 {[%emt 0:00:16]} a5 {[%emt 0:03:20][%cal Ba7a5,Ba5a4][%mdl 32]} 53. Nd3 {[%emt 0:00:11]} Bh6 {[%emt 0:01:06] ( -> ...Rd4)} 54. Rh1 {[%emt 0:00:23]} Bg5 {[%emt 0:01:01] Hoping for ...Rd4.} 55. Nf4+ {[%emt 0:00:18]} Bxf4 {[%emt 0:00:09] Black mates.} 56. exf4 {[%emt 0:00:03]} Rxe2+ {[%emt 0:00:20]} 57. Kxe2 {[%emt 0:00:04] KR-KR} a4 {[%emt 0:00:59]} 58. Kd2 {[%emt 0:00:19]} Rf3 {[%emt 0:00:30]} 59. Rb1 {[%emt 0:00:08]} Rxf4 {[%emt 0:00:10]} 60. Ke3 {[%emt 0:00:37]} Kf5 {[%emt 0:01:22]} 61. Rc1 {[%emt 0:00:12]} Rf3+ {[%emt 0:00:29]} 62. Kd4 {[%emt 0:00:06]} g3 {[%emt 0:01:16]} 63. Rc8 {[%emt 0:00:19]} Kg4 {[%emt 0:02:30]} 64. Ke4 {[%emt 0:00:04]} Rf5 {[%emt 0:01:15]} 65. Rg8+ {[%emt 0:00:19]} Rg5 {[%emt 0:00:04]} 66. Rd8 {[%emt 0:00:08]} g2 {[%emt 0:00:18]} 67. Rd1 {[%emt 0:00:05]} Kg3 {[%emt 0:00:31]} 68. Ke3 {[%emt 0:00:06]} Kh2 {[%emt 0:00:31]} 69. Kf2 {[%emt 0:00:12]} g1=Q+ {[%emt 0:00:11]} 70. Rxg1 {[%emt 0:00:04]} Rf5+ {[%emt 0:00:03] Weighted Error Value: White=0.55/Black=0.27 (precise)} 0-1